[Event "Early-Titled-Tuesday-Blitz-September-12-2023"]
[Site "Chess.com"]
[Date "2023.09.12"]
[Round "9"]
[White "MateusViageiro"]
[Black "carloseduar100"]
[Result "0-1"]
[WhiteElo "2129"]
[BlackElo "2296"]
[TimeControl "180+1"]
[EndTime "9:46:21 PDT"]
[Termination "carloseduar100 won on time"]

1. e4 {[%clk 0:02:55.9]} 1... e6 {[%clk 0:02:44.5]} 2. Qe2 {[%clk 0:02:54.9]}
2... b6 {[%clk 0:02:43.4]} 3. d3 {[%clk 0:02:54.1]} 3... Bb7 {[%clk 0:02:44.3]}
4. Nc3 {[%clk 0:02:54.3]} 4... Nf6 {[%clk 0:02:44.9]} 5. Bg5 {[%clk 0:02:53.9]}
5... Be7 {[%clk 0:02:44.9]} 6. O-O-O {[%clk 0:02:52.9]} 6... Nxe4 {[%clk
0:02:37.9]} 7. Nxe4 {[%clk 0:02:21.8]} 7... Bxg5+ {[%clk 0:02:37.1]} 8. Nxg5
{[%clk 0:02:21.2]} 8... Qxg5+ {[%clk 0:02:38]} 9. f4 {[%clk 0:02:15]} 9... Qxf4+
{[%clk 0:02:26.3]} 10. Kb1 {[%clk 0:02:15.3]} 10... Nc6 {[%clk 0:02:22]} 11. Nf3
{[%clk 0:02:14.9]} 11... Nd4 {[%clk 0:02:17.2]} 12. Nxd4 {[%clk 0:02:13.7]}
12... Qxd4 {[%clk 0:02:18.1]} 13. c3 {[%clk 0:02:09.1]} 13... Qf6 {[%clk
0:02:15.3]} 14. Qe3 {[%clk 0:02:05.1]} 14... O-O-O {[%clk 0:02:12.4]} 15. Be2
{[%clk 0:01:59.7]} 15... Qg6 {[%clk 0:02:11.7]} 16. g3 {[%clk 0:01:59.2]} 16...
Bxh1 {[%clk 0:01:56.2]} 17. Rxh1 {[%clk 0:01:58.1]} 17... d5 {[%clk 0:01:54]}
18. Rf1 {[%clk 0:01:56.6]} 18... Rhe8 {[%clk 0:01:52.4]} 19. a4 {[%clk
0:01:52.7]} 19... a5 {[%clk 0:01:50.3]} 20. Ka1 {[%clk 0:01:50.8]} 20... Qh6
{[%clk 0:01:44.4]} 21. Qd4 {[%clk 0:01:37.1]} 21... e5 {[%clk 0:01:42.5]} 22.
Bg4+ {[%clk 0:01:36]} 22... Kb7 {[%clk 0:01:38.1]} 23. Qf2 {[%clk 0:01:35]}
23... f6 {[%clk 0:01:26]} 24. c4 {[%clk 0:01:32.3]} 24... e4 {[%clk 0:01:12.8]}
25. cxd5 {[%clk 0:01:31.9]} 25... exd3 {[%clk 0:01:05.1]} 26. Be6 {[%clk
0:01:28.3]} 26... d2 {[%clk 0:00:57.7]} 27. Qf3 {[%clk 0:01:24.2]} 27... Ka7
{[%clk 0:00:52.1]} 28. Qc3 {[%clk 0:01:21.7]} 28... Re7 {[%clk 0:00:47.3]} 29.
Rd1 {[%clk 0:01:20.9]} 29... Kb8 {[%clk 0:00:39.1]} 30. h4 {[%clk 0:00:53.3]}
30... Rd6 {[%clk 0:00:19.6]} 31. Ka2 {[%clk 0:00:43.5]} 31... g5 {[%clk
0:00:19.5]} 32. hxg5 {[%clk 0:00:40.9]} 32... Qxg5 {[%clk 0:00:18.7]} 33. Qb3
{[%clk 0:00:35.3]} 33... Qe5 {[%clk 0:00:17]} 34. g4 {[%clk 0:00:29.3]} 34...
Qe2 {[%clk 0:00:17.1]} 35. Qc2 {[%clk 0:00:25.8]} 35... Rexe6 {[%clk 0:00:13.5]}
36. dxe6 {[%clk 0:00:25.1]} 36... Qxe6+ {[%clk 0:00:14.4]} 37. b3 {[%clk
0:00:23.4]} 37... Qxg4 {[%clk 0:00:14.7]} 38. Rxd2 {[%clk 0:00:22.7]} 38... Qd7
{[%clk 0:00:14.7]} 39. Rg2 {[%clk 0:00:21]} 39... f5 {[%clk 0:00:13.1]} 40. Rg8+
{[%clk 0:00:20.3]} 40... Kb7 {[%clk 0:00:13.7]} 41. Rg2 {[%clk 0:00:20.8]} 41...
Qc6 {[%clk 0:00:14]} 42. Qe2 {[%clk 0:00:19.3]} 42... f4 {[%clk 0:00:14]} 43.
Rf2 {[%clk 0:00:19.3]} 43... Rf6 {[%clk 0:00:14.3]} 44. Qb2 {[%clk 0:00:17.1]}
44... h6 {[%clk 0:00:14.6]} 45. Qd2 {[%clk 0:00:16.7]} 45... Qd6 {[%clk
0:00:14.9]} 46. Qe2 {[%clk 0:00:16.3]} 46... f3 {[%clk 0:00:15.2]} 47. Rxf3
{[%clk 0:00:15.8]} 47... Rxf3 {[%clk 0:00:15.4]} 48. Qxf3+ {[%clk 0:00:16.1]}
48... Qc6 {[%clk 0:00:16.3]} 49. Qe3 {[%clk 0:00:14.1]} 49... Qg2+ {[%clk
0:00:16.2]} 50. Ka3 {[%clk 0:00:11.9]} 50... h5 {[%clk 0:00:16.8]} 51. Qh6
{[%clk 0:00:10.4]} 51... Qg4 {[%clk 0:00:15.2]} 52. Qh7 {[%clk 0:00:08.1]} 52...
h4 {[%clk 0:00:14.1]} 53. Ka2 {[%clk 0:00:05.6]} 53... h3 {[%clk 0:00:13.6]} 54.
Ka3 {[%clk 0:00:05.6]} 54... Qg2 {[%clk 0:00:12.4]} 0-1

[Event "Early-Titled-Tuesday-Blitz-September-12-2023"]
[Site "Chess.com"]
[Date "2023.09.12"]
[Round "9"]
[White "Boxerandchessplayer"]
[Black "Nekoo04"]
[Result "1-0"]
[WhiteElo "2128"]
[BlackElo "2270"]
[TimeControl "180+1"]
[EndTime "9:46:21 PDT"]
[Termination "Boxerandchessplayer won by resignation"]

1. d4 {[%clk 0:03:00.9]} 1... d5 {[%clk 0:02:49.2]} 2. Nf3 {[%clk 0:02:48.6]}
2... Nf6 {[%clk 0:02:48]} 3. c4 {[%clk 0:02:46.1]} 3... e6 {[%clk 0:02:32.9]} 4.
g3 {[%clk 0:02:44.9]} 4... Bb4+ {[%clk 0:02:32.4]} 5. Bd2 {[%clk 0:02:44.6]}
5... Be7 {[%clk 0:02:29.4]} 6. Bg2 {[%clk 0:02:43.9]} 6... O-O {[%clk
0:02:29.5]} 7. O-O {[%clk 0:02:41.3]} 7... Nbd7 {[%clk 0:02:26.1]} 8. Qc2 {[%clk
0:02:39.5]} 8... c6 {[%clk 0:02:26.2]} 9. Bf4 {[%clk 0:02:37.8]} 9... b6 {[%clk
0:02:26.1]} 10. Nbd2 {[%clk 0:02:38.1]} 10... Bb7 {[%clk 0:02:24.4]} 11. e4
{[%clk 0:02:38.5]} 11... dxe4 {[%clk 0:02:07.2]} 12. Nxe4 {[%clk 0:02:38.1]}
12... Nxe4 {[%clk 0:02:07.4]} 13. Qxe4 {[%clk 0:02:37.6]} 13... Nf6 {[%clk
0:02:08]} 14. Qe2 {[%clk 0:02:38.1]} 14... c5 {[%clk 0:02:06.3]} 15. Rfd1 {[%clk
0:02:37.7]} 15... cxd4 {[%clk 0:01:56.6]} 16. Nxd4 {[%clk 0:02:29.7]} 16... Bxg2
{[%clk 0:01:54.9]} 17. Kxg2 {[%clk 0:02:12.1]} 17... Qc8 {[%clk 0:01:33.2]} 18.
Rac1 {[%clk 0:02:11.1]} 18... Bc5 {[%clk 0:00:50.3]} 19. Nb5 {[%clk 0:02:02.6]}
19... Rd8 {[%clk 0:00:45.2]} 20. Qf3 {[%clk 0:00:59.4]} 20... a6 {[%clk
0:00:18]} 21. Nd6 {[%clk 0:00:49.6]} 21... Bxd6 {[%clk 0:00:12.2]} 22. Bxd6
{[%clk 0:00:50]} 22... Ra7 {[%clk 0:00:11.7]} 23. Be5 {[%clk 0:00:42.4]} 23...
Rad7 {[%clk 0:00:11.1]} 24. Bxf6 {[%clk 0:00:37.8]} 24... Rxd1 {[%clk
0:00:10.5]} 25. Rxd1 {[%clk 0:00:37.7]} 25... Rxd1 {[%clk 0:00:10.9]} 26. Qxd1
{[%clk 0:00:38.1]} 26... gxf6 {[%clk 0:00:08.1]} 27. b3 {[%clk 0:00:38.5]} 27...
Qc6+ {[%clk 0:00:06.7]} 28. Qf3 {[%clk 0:00:24.1]} 28... Qxf3+ {[%clk
0:00:05.2]} 29. Kxf3 {[%clk 0:00:25]} 29... Kf8 {[%clk 0:00:05.2]} 30. Ke4
{[%clk 0:00:25]} 30... Ke7 {[%clk 0:00:05.2]} 31. b4 {[%clk 0:00:17.8]} 31...
f5+ {[%clk 0:00:03.3]} 32. Ke5 {[%clk 0:00:14.5]} 32... f6+ {[%clk 0:00:03.1]}
33. Kd4 {[%clk 0:00:15.1]} 33... Kd6 {[%clk 0:00:03.4]} 34. h3 {[%clk
0:00:10.8]} 34... e5+ {[%clk 0:00:03.6]} 35. Kd3 {[%clk 0:00:10.7]} 35... a5
{[%clk 0:00:04.3]} 36. a3 {[%clk 0:00:10.4]} 36... Kc6 {[%clk 0:00:04.5]} 37. g4
{[%clk 0:00:05.8]} 37... fxg4 {[%clk 0:00:03.3]} 38. hxg4 {[%clk 0:00:06]} 38...
Kd6 {[%clk 0:00:03.8]} 39. Ke4 {[%clk 0:00:06.2]} 39... Ke6 {[%clk 0:00:04.1]}
40. f3 {[%clk 0:00:04.8]} 40... h6 {[%clk 0:00:03.3]} 41. c5 {[%clk 0:00:04.4]}
41... axb4 {[%clk 0:00:03.3]} 42. axb4 {[%clk 0:00:03.8]} 42... bxc5 {[%clk
0:00:02.9]} 43. bxc5 {[%clk 0:00:04.4]} 43... Kd7 {[%clk 0:00:02.9]} 44. Kf5
{[%clk 0:00:04.9]} 44... Kc6 {[%clk 0:00:02.7]} 45. Kxf6 {[%clk 0:00:05.6]}
45... Kxc5 {[%clk 0:00:03.6]} 46. Kxe5 {[%clk 0:00:06.3]} 46... Kc6 {[%clk
0:00:03.6]} 47. Kf5 {[%clk 0:00:07]} 47... Kd6 {[%clk 0:00:04.1]} 48. Kg6 {[%clk
0:00:07.7]} 48... Ke5 {[%clk 0:00:04.8]} 49. Kxh6 {[%clk 0:00:08.3]} 49... Kf4
{[%clk 0:00:05.7]} 50. g5 {[%clk 0:00:08.6]} 50... Kxf3 {[%clk 0:00:06.6]} 51.
g6 {[%clk 0:00:09.3]} 1-0

[Event "Early-Titled-Tuesday-Blitz-September-12-2023"]
[Site "Chess.com"]
[Date "2023.09.12"]
[Round "9"]
[White "DvaHrasta"]
[Black "BlitzWizard04"]
[Result "0-1"]
[WhiteElo "2482"]
[BlackElo "2617"]
[TimeControl "180+1"]
[EndTime "9:46:24 PDT"]
[Termination "BlitzWizard04 won on time"]

1. c4 {[%clk 0:03:00.9]} 1... e6 {[%clk 0:02:58.5]} 2. g3 {[%clk 0:03:01]} 2...
d5 {[%clk 0:02:58.8]} 3. Bg2 {[%clk 0:03:01.3]} 3... Nf6 {[%clk 0:02:58.9]} 4.
Nf3 {[%clk 0:03:01.4]} 4... Be7 {[%clk 0:02:59]} 5. O-O {[%clk 0:03:01.6]} 5...
O-O {[%clk 0:02:59.3]} 6. d4 {[%clk 0:03:01.9]} 6... dxc4 {[%clk 0:02:59.3]} 7.
Ne5 {[%clk 0:03:02.1]} 7... Nc6 {[%clk 0:02:59.6]} 8. Bxc6 {[%clk 0:03:02.1]}
8... bxc6 {[%clk 0:02:59.7]} 9. Nxc6 {[%clk 0:03:02.8]} 9... Qe8 {[%clk
0:03:00.5]} 10. Nxe7+ {[%clk 0:03:03.3]} 10... Qxe7 {[%clk 0:03:01.4]} 11. Na3
{[%clk 0:03:03.5]} 11... e5 {[%clk 0:02:55.9]} 12. dxe5 {[%clk 0:03:01]} 12...
Qxe5 {[%clk 0:02:56.8]} 13. Nxc4 {[%clk 0:03:00.3]} 13... Qe4 {[%clk 0:02:57.5]}
14. Qd3 {[%clk 0:02:54.7]} 14... Qc6 {[%clk 0:02:48.2]} 15. Bf4 {[%clk
0:02:32.4]} 15... Bb7 {[%clk 0:02:44.6]} 16. f3 {[%clk 0:02:32.2]} 16... Rad8
{[%clk 0:02:44.3]} 17. Qc2 {[%clk 0:02:21.8]} 17... Rfe8 {[%clk 0:02:44]} 18.
Rac1 {[%clk 0:02:18.1]} 18... Nd5 {[%clk 0:02:35.3]} 19. e4 {[%clk 0:01:53.7]}
19... Nxf4 {[%clk 0:02:10.9]} 20. gxf4 {[%clk 0:01:52.8]} 20... Qh6 {[%clk
0:02:05.9]} 21. f5 {[%clk 0:01:37.1]} 21... Rd4 {[%clk 0:01:51.5]} 22. Qf2
{[%clk 0:01:24.4]} 22... c5 {[%clk 0:01:38.6]} 23. Ne3 {[%clk 0:01:16.3]} 23...
Qg5+ {[%clk 0:01:29.6]} 24. Kh1 {[%clk 0:01:12.6]} 24... Red8 {[%clk 0:01:19.9]}
25. Rg1 {[%clk 0:01:09.1]} 25... Qf4 {[%clk 0:01:14.2]} 26. f6 {[%clk 0:00:57]}
26... Bxe4 {[%clk 0:01:02.2]} 27. Rxg7+ {[%clk 0:00:53.7]} 27... Kh8 {[%clk
0:01:02.1]} 28. Rf1 {[%clk 0:00:40.4]} 28... Qxf6 {[%clk 0:00:57.9]} 29. Rg4
{[%clk 0:00:29.8]} 29... Bg6 {[%clk 0:00:54.6]} 30. Rxd4 {[%clk 0:00:26.2]}
30... cxd4 {[%clk 0:00:54.5]} 31. Ng4 {[%clk 0:00:25.6]} 31... Qf4 {[%clk
0:00:54.6]} 32. Qg3 {[%clk 0:00:25.2]} 32... Qxg3 {[%clk 0:00:43.3]} 33. hxg3
{[%clk 0:00:26.1]} 33... Rc8 {[%clk 0:00:30.5]} 34. Rd1 {[%clk 0:00:24.3]} 34...
Rc2 {[%clk 0:00:23]} 35. Rxd4 {[%clk 0:00:22.5]} 35... Rxb2 {[%clk 0:00:23.1]}
36. Ra4 {[%clk 0:00:22.1]} 36... Rb7 {[%clk 0:00:20.2]} 37. Kg2 {[%clk 0:00:19]}
37... Bf5 {[%clk 0:00:20.1]} 38. Ne3 {[%clk 0:00:17.5]} 38... Be6 {[%clk
0:00:20.1]} 39. g4 {[%clk 0:00:17.2]} 39... Rb2+ {[%clk 0:00:19.9]} 40. Kg3
{[%clk 0:00:17.2]} 40... Rxa2 {[%clk 0:00:20.8]} 41. Rb4 {[%clk 0:00:15.9]}
41... a5 {[%clk 0:00:19.2]} 42. Rb8+ {[%clk 0:00:14.8]} 42... Kg7 {[%clk
0:00:19.8]} 43. f4 {[%clk 0:00:14.3]} 43... Ra3 {[%clk 0:00:18.8]} 44. Kf2
{[%clk 0:00:14.5]} 44... a4 {[%clk 0:00:14.2]} 45. f5 {[%clk 0:00:14.6]} 45...
Ra2+ {[%clk 0:00:14.4]} 46. Kg3 {[%clk 0:00:13.9]} 46... Bb3 {[%clk 0:00:13.5]}
47. g5 {[%clk 0:00:14]} 47... Re2 {[%clk 0:00:11.1]} 48. Kf4 {[%clk 0:00:11]}
48... Rf2+ {[%clk 0:00:09]} 49. Kg4 {[%clk 0:00:07.1]} 49... f6 {[%clk
0:00:03.4]} 50. Rb7+ {[%clk 0:00:06.3]} 50... Bf7 {[%clk 0:00:04.1]} 51. gxf6+
{[%clk 0:00:05.1]} 51... Kxf6 {[%clk 0:00:04.7]} 52. Ra7 {[%clk 0:00:03.1]}
52... Re2 {[%clk 0:00:03.8]} 53. Ra6+ {[%clk 0:00:02.5]} 53... Kg7 {[%clk
0:00:04.5]} 54. Kf4 {[%clk 0:00:02.1]} 54... Rf2+ {[%clk 0:00:04.1]} 55. Kg3
{[%clk 0:00:01.9]} 55... Ra2 {[%clk 0:00:05]} 56. Ng4 {[%clk 0:00:01.8]} 56...
a3 {[%clk 0:00:05.2]} 57. Ra7 {[%clk 0:00:01.7]} 57... Kf8 {[%clk 0:00:04.7]}
58. Ne5 {[%clk 0:00:01.2]} 58... Be8 {[%clk 0:00:04.7]} 59. f6 {[%clk
0:00:01.4]} 59... Re2 {[%clk 0:00:04.9]} 0-1

[Event "Early-Titled-Tuesday-Blitz-September-12-2023"]
[Site "Chess.com"]
[Date "2023.09.12"]
[Round "9"]
[White "karinachess1"]
[Black "Gareth-Bale11"]
[Result "1/2-1/2"]
[WhiteElo "2615"]
[BlackElo "2773"]
[TimeControl "180+1"]
[EndTime "9:46:25 PDT"]
[Termination "Game drawn by repetition"]

1. d4 {[%clk 0:03:00.9]} 1... Nf6 {[%clk 0:02:09.2]} 2. c4 {[%clk 0:03:00.5]}
2... e6 {[%clk 0:02:08.9]} 3. Nc3 {[%clk 0:02:59.5]} 3... d5 {[%clk 0:02:09.8]}
4. cxd5 {[%clk 0:02:56.7]} 4... exd5 {[%clk 0:02:10.7]} 5. Bg5 {[%clk
0:02:56.9]} 5... Bb4 {[%clk 0:02:11]} 6. Qb3 {[%clk 0:02:41.5]} 6... a5 {[%clk
0:02:03.5]} 7. a3 {[%clk 0:02:27.9]} 7... Bxc3+ {[%clk 0:02:01.7]} 8. bxc3
{[%clk 0:02:28.8]} 8... a4 {[%clk 0:01:52.8]} 9. Qc2 {[%clk 0:02:24.9]} 9... h6
{[%clk 0:01:51.4]} 10. Bxf6 {[%clk 0:02:09]} 10... Qxf6 {[%clk 0:01:50.9]} 11.
e3 {[%clk 0:02:09.1]} 11... O-O {[%clk 0:01:44.7]} 12. Bd3 {[%clk 0:02:03.5]}
12... c5 {[%clk 0:01:44.7]} 13. dxc5 {[%clk 0:01:44.7]} 13... Nd7 {[%clk
0:01:37.8]} 14. Nf3 {[%clk 0:01:40.6]} 14... Nxc5 {[%clk 0:01:37.6]} 15. Nd4
{[%clk 0:01:39.9]} 15... b6 {[%clk 0:01:33.5]} 16. Bb5 {[%clk 0:01:26.2]} 16...
Nb3 {[%clk 0:01:05.2]} 17. Nxb3 {[%clk 0:01:19.5]} 17... Bf5 {[%clk 0:01:05.1]}
18. Qb2 {[%clk 0:01:06.3]} 18... axb3 {[%clk 0:01:05.1]} 19. Qxb3 {[%clk
0:01:03.7]} 19... Rfc8 {[%clk 0:00:55.8]} 20. O-O {[%clk 0:00:47.2]} 20... Be4
{[%clk 0:00:50.8]} 21. c4 {[%clk 0:00:38.9]} 21... Qg6 {[%clk 0:00:24.7]} 22. f3
{[%clk 0:00:33.8]} 22... Bd3 {[%clk 0:00:22.9]} 23. Rfc1 {[%clk 0:00:33.9]}
23... Rc5 {[%clk 0:00:22.3]} 24. Rc3 {[%clk 0:00:27.6]} 24... Be2 {[%clk
0:00:16.7]} 25. Kf2 {[%clk 0:00:23.5]} 25... dxc4 {[%clk 0:00:15]} 26. Bxc4
{[%clk 0:00:22.8]} 26... Bxc4 {[%clk 0:00:10.4]} 27. Rxc4 {[%clk 0:00:22.5]}
27... Qe6 {[%clk 0:00:09.2]} 28. Rb4 {[%clk 0:00:15.3]} 28... Qxb3 {[%clk
0:00:05]} 29. Rxb3 {[%clk 0:00:16.2]} 29... Rc2+ {[%clk 0:00:05.6]} 30. Kg3
{[%clk 0:00:16.6]} 30... Ra5 {[%clk 0:00:05.7]} 31. h4 {[%clk 0:00:16]} 31... b5
{[%clk 0:00:04.6]} 32. Rab1 {[%clk 0:00:15.2]} 32... g6 {[%clk 0:00:04]} 33. e4
{[%clk 0:00:06.4]} 33... h5 {[%clk 0:00:04]} 34. Rxb5 {[%clk 0:00:05.6]} 34...
Rxa3 {[%clk 0:00:03.9]} 35. R1b2 {[%clk 0:00:05.9]} 35... Rc7 {[%clk 0:00:04.1]}
36. Rb8+ {[%clk 0:00:05.9]} 36... Kg7 {[%clk 0:00:04.1]} 37. R8b7 {[%clk
0:00:06.3]} 37... Rxb7 {[%clk 0:00:04.4]} 38. Rxb7 {[%clk 0:00:06.1]} 38... Ra2
{[%clk 0:00:05]} 39. Kh3 {[%clk 0:00:05.7]} 39... Kf6 {[%clk 0:00:05.2]} 40. Kg3
{[%clk 0:00:05.4]} 40... Rc2 {[%clk 0:00:05.1]} 41. Rb6+ {[%clk 0:00:05.7]}
41... Kg7 {[%clk 0:00:05.1]} 42. Kh3 {[%clk 0:00:06.2]} 42... Kf8 {[%clk
0:00:04.5]} 43. g3 {[%clk 0:00:06.3]} 43... Ke7 {[%clk 0:00:04.5]} 44. e5 {[%clk
0:00:05.4]} 44... Rf2 {[%clk 0:00:04.5]} 45. f4 {[%clk 0:00:05.6]} 45... Re2
{[%clk 0:00:04.9]} 46. Rb7+ {[%clk 0:00:05.6]} 46... Kf8 {[%clk 0:00:05.2]} 47.
Ra7 {[%clk 0:00:05.2]} 47... Kg8 {[%clk 0:00:04.5]} 48. Ra1 {[%clk 0:00:05.8]}
48... Kg7 {[%clk 0:00:04.5]} 49. Rg1 {[%clk 0:00:06.4]} 49... Kf8 {[%clk
0:00:04.8]} 50. Rg2 {[%clk 0:00:07.1]} 50... Re3 {[%clk 0:00:05.4]} 51. Kh2
{[%clk 0:00:07.6]} 51... Ke7 {[%clk 0:00:05.8]} 52. Kg1 {[%clk 0:00:08.1]} 52...
f6 {[%clk 0:00:05.9]} 53. exf6+ {[%clk 0:00:07.6]} 53... Kxf6 {[%clk 0:00:06.8]}
54. Kf2 {[%clk 0:00:08.3]} 54... Rb3 {[%clk 0:00:07.1]} 55. Rg1 {[%clk
0:00:08.6]} 55... Kf5 {[%clk 0:00:07.1]} 56. Re1 {[%clk 0:00:07.9]} 56... Rb2+
{[%clk 0:00:06.8]} 57. Re2 {[%clk 0:00:07.8]} 57... Rb5 {[%clk 0:00:07.4]} 58.
Kf3 {[%clk 0:00:06.8]} 58... Rb3+ {[%clk 0:00:07.8]} 59. Re3 {[%clk 0:00:07.4]}
59... Rb5 {[%clk 0:00:08.7]} 60. Rd3 {[%clk 0:00:07.5]} 60... Rc5 {[%clk
0:00:08.9]} 61. Re3 {[%clk 0:00:07.8]} 61... Rb5 {[%clk 0:00:09.1]} 62. Ra3
{[%clk 0:00:07.9]} 62... Rc5 {[%clk 0:00:09.3]} 63. Re3 {[%clk 0:00:07.7]} 63...
Rb5 {[%clk 0:00:09.5]} 1/2-1/2

[Event "Early-Titled-Tuesday-Blitz-September-12-2023"]
[Site "Chess.com"]
[Date "2023.09.12"]
[Round "9"]
[White "hansen"]
[Black "Hikaru"]
[Result "0-1"]
[WhiteElo "2903"]
[BlackElo "3238"]
[TimeControl "180+1"]
[EndTime "9:46:26 PDT"]
[Termination "Hikaru won on time"]

1. e4 {[%clk 0:03:00.9]} 1... a6 {[%clk 0:02:55.1]} 2. d4 {[%clk 0:02:59.4]}
2... c6 {[%clk 0:02:53.5]} 3. Nc3 {[%clk 0:02:57.4]} 3... d5 {[%clk 0:02:53.8]}
4. h3 {[%clk 0:02:57.2]} 4... dxe4 {[%clk 0:02:46.9]} 5. Nxe4 {[%clk 0:02:57.4]}
5... Bf5 {[%clk 0:02:45.4]} 6. Bd3 {[%clk 0:02:36]} 6... Qxd4 {[%clk 0:02:23.9]}
7. Nf3 {[%clk 0:02:36.2]} 7... Qd5 {[%clk 0:02:23.8]} 8. Qe2 {[%clk 0:02:36.5]}
8... Bg6 {[%clk 0:02:08.3]} 9. Bf4 {[%clk 0:01:58.3]} 9... e6 {[%clk 0:01:48.6]}
10. O-O {[%clk 0:01:47.1]} 10... Nf6 {[%clk 0:01:45.2]} 11. c4 {[%clk
0:01:42.6]} 11... Qd8 {[%clk 0:01:26.6]} 12. Rad1 {[%clk 0:01:40.3]} 12... Bxe4
{[%clk 0:01:22.7]} 13. Bxe4 {[%clk 0:01:40.5]} 13... Nbd7 {[%clk 0:01:23.3]} 14.
Ne5 {[%clk 0:01:11.7]} 14... Qc8 {[%clk 0:01:23.1]} 15. Bb1 {[%clk 0:00:53.9]}
15... Be7 {[%clk 0:01:17.5]} 16. Qd3 {[%clk 0:00:50.7]} 16... Nf8 {[%clk
0:01:14.1]} 17. Qf3 {[%clk 0:00:31.8]} 17... Ng6 {[%clk 0:01:12.1]} 18. Bh2
{[%clk 0:00:27.9]} 18... O-O {[%clk 0:01:09.9]} 19. g4 {[%clk 0:00:27.2]} 19...
Rd8 {[%clk 0:01:00.2]} 20. Nxf7 {[%clk 0:00:17.8]} 20... Kxf7 {[%clk 0:00:38]}
21. g5 {[%clk 0:00:17.9]} 21... Rxd1 {[%clk 0:00:36.4]} 22. Rxd1 {[%clk
0:00:17.7]} 22... Kg8 {[%clk 0:00:37.1]} 23. gxf6 {[%clk 0:00:17.7]} 23... Bxf6
{[%clk 0:00:38]} 24. b3 {[%clk 0:00:16.6]} 24... Qe8 {[%clk 0:00:37.6]} 25. Re1
{[%clk 0:00:14.7]} 25... Qf7 {[%clk 0:00:37.3]} 26. Bg3 {[%clk 0:00:14.8]} 26...
Rf8 {[%clk 0:00:36.2]} 27. Qg4 {[%clk 0:00:14.5]} 27... Re8 {[%clk 0:00:33.5]}
28. Kg2 {[%clk 0:00:13.5]} 28... Bd8 {[%clk 0:00:26]} 29. Bxg6 {[%clk
0:00:12.5]} 29... hxg6 {[%clk 0:00:24.2]} 30. Be5 {[%clk 0:00:09.4]} 30... Qf5
{[%clk 0:00:22]} 31. Bg3 {[%clk 0:00:07.7]} 31... Bf6 {[%clk 0:00:21.4]} 32. Rd1
{[%clk 0:00:08.3]} 32... Rd8 {[%clk 0:00:13.1]} 33. Rxd8+ {[%clk 0:00:08.1]}
33... Bxd8 {[%clk 0:00:14]} 34. Qd1 {[%clk 0:00:08.5]} 34... Bf6 {[%clk
0:00:14]} 35. Qd7 {[%clk 0:00:08.9]} 35... Qe4+ {[%clk 0:00:14.3]} 36. Kh2
{[%clk 0:00:09.2]} 36... Bh4 {[%clk 0:00:06.3]} 37. Qxb7 {[%clk 0:00:04.7]}
37... Bxg3+ {[%clk 0:00:06.3]} 38. Kxg3 {[%clk 0:00:03]} 38... Qe5+ {[%clk
0:00:06.7]} 39. Kg2 {[%clk 0:00:03.1]} 39... Qe4+ {[%clk 0:00:07.4]} 40. Kg3
{[%clk 0:00:03.3]} 40... Qe5+ {[%clk 0:00:05.1]} 41. Kg2 {[%clk 0:00:03.5]}
41... Qg5+ {[%clk 0:00:05.1]} 42. Kf1 {[%clk 0:00:02.8]} 42... Qc1+ {[%clk
0:00:03.8]} 43. Kg2 {[%clk 0:00:03.2]} 43... Qg5+ {[%clk 0:00:04.3]} 44. Kf1
{[%clk 0:00:03]} 44... Qf5 {[%clk 0:00:04.5]} 45. Qb8+ {[%clk 0:00:02]} 45...
Kh7 {[%clk 0:00:04]} 46. Kg2 {[%clk 0:00:02.4]} 46... Qe4+ {[%clk 0:00:04.2]}
47. Kg1 {[%clk 0:00:02.9]} 47... Qb1+ {[%clk 0:00:04.5]} 48. Kg2 {[%clk
0:00:02.9]} 48... Qxa2 {[%clk 0:00:05.4]} 49. Qg3 {[%clk 0:00:02.9]} 49... Qe2
{[%clk 0:00:05.8]} 50. Qh4+ {[%clk 0:00:02.1]} 50... Qh5 {[%clk 0:00:06.5]} 51.
Qg3 {[%clk 0:00:02.5]} 51... Qf5 {[%clk 0:00:06.5]} 52. Qg4 {[%clk 0:00:02.7]}
52... Kg8 {[%clk 0:00:05.3]} 53. Kg3 {[%clk 0:00:03]} 53... a5 {[%clk
0:00:05.3]} 54. Qd4 {[%clk 0:00:03.2]} 54... Qg5+ {[%clk 0:00:04.7]} 55. Kf3
{[%clk 0:00:03.1]} 55... Kh7 {[%clk 0:00:05.4]} 56. h4 {[%clk 0:00:02.9]} 56...
Qf5+ {[%clk 0:00:05.8]} 57. Kg3 {[%clk 0:00:03.2]} 57... e5 {[%clk 0:00:06.4]}
58. Qe3 {[%clk 0:00:03.3]} 58... e4 {[%clk 0:00:07]} 59. Qg5 {[%clk 0:00:03.2]}
59... Qf3+ {[%clk 0:00:07.4]} 60. Kh2 {[%clk 0:00:03.4]} 60... Qxf2+ {[%clk
0:00:08.2]} 61. Kh3 {[%clk 0:00:04]} 61... Qf5+ {[%clk 0:00:08.3]} 62. Kg3
{[%clk 0:00:04.2]} 62... Qf3+ {[%clk 0:00:08.8]} 63. Kh2 {[%clk 0:00:04.4]}
63... e3 {[%clk 0:00:09.6]} 64. Qg3 {[%clk 0:00:02.2]} 64... Qe4 {[%clk
0:00:06.8]} 65. Kg1 {[%clk 0:00:01.4]} 65... e2 {[%clk 0:00:07.3]} 66. Qe1
{[%clk 0:00:01.5]} 66... Qf3 {[%clk 0:00:08]} 0-1